Cogmind - Beta 13 @@@ ROGUE MODE // 2024.06.28 @ 23:55:34 Player: RAT Result: Destroyed by Y-45 Defender with Heavy Assault Rifle Performance ------------- Evolutions (1) 500 Regions Visited (3) 600 Robots Destroyed (25) 125 Value Destroyed (687) 687 Prototype IDs (0) 0 Alien Tech Used (0) 0 Bonus (0) 0 TOTAL SCORE: 1912 Bonus ------- None Cogmind --------- Core Integrity 0/400 Matter 300/300 Energy 100/100 System Corruption 2% Temperature Cool (9) Movement Core (100) Ox1 Location -9/Storage Parts ------- > --- POWER (2) -------- (None) > --- PROPULSION (2) --- (None) > --- UTILITY (3) ------ Small Storage Unit Signal Interpreter > --- WEAPON (2) ------- (None) > --- INVENTORY (8) ---- Improved Aluminum Leg Improved Aluminum Leg Mining Laser Peak State ------------ > --- POWER ------------ Ion Engine Light Nuclear Core > --- PROPULSION ------- Aluminum Leg Aluminum Leg > --- UTILITY ---------- Small Storage Unit Signal Interpreter > --- WEAPON ----------- Small Laser Light Cannon > --- INVENTORY -------- Improved Ion Engine Improved Aluminum Leg Improved Aluminum Leg VTOL Module VTOL Module Medium Laser Mining Laser [Rating: 11] Favorites ----------- Power Ion Engine Engine Ion Engine Power Core Light Nuclear Core Propulsion Light Treads Treads Light Treads Leg Aluminum Leg Flight Unit VTOL Module Utility Small Storage Unit Storage Small Storage Unit Processor Signal Interpreter Weapon Small Laser Energy Gun Small Laser Ballistic Gun Heavy Assault Rifle Ballistic Cannon Light Cannon Build | -11 -10 -9 -9 ------- Run | Yrd Mat Mat Sto Slots Evolved 2 | . . 2 . Power 1 | . . 1 . Propulsion . | . . . . Utility 1 | . . 1 . Weapon . | . . . . Parts Attached 20 | 6 4 3 7 Power 4 | 1 1 . 2 Engine 3 | 1 . . 2 Core 1 | . 1 . . Reactor . | . . . . Propulsion 6 | 2 . 2 2 Treads 2 | 2 . . . Leg 2 | . . 2 . Wheel . | . . . . Hover . | . . . . Flight 2 | . . . 2 Utility 2 | 1 1 . . Device . | . . . . Storage 1 | 1 . . . Processor 1 | . 1 . . Hackware . | . . . . Protection . | . . . . Artifact . | . . . . Weapon 8 | 2 2 1 3 Energy Gun 5 | 2 . 1 2 Energy Cannon . | . . . . Ballistic Gun 1 | . . . 1 Ballistic Cannon 2 | . 2 . . Launcher . | . . . . Special Weapon . | . . . . Impact Weapon . | . . . . Slashing Weapon . | . . . . Piercing Weapon . | . . . . Special Melee Weapon . | . . . . Unidentified Prototypes . | . . . . Parts Lost 9 | . . . 9 Power 1 | . . . 1 Propulsion 4 | . . . 4 Utility . | . . . . Weapon 4 | . . . 4 Highest Loss Streak 4 | . . . 4 To Critical Strikes . | . . . . Average Slot Usage (%) 85 | . 97 77 76 Engine 9 | . 7 . 16 Core 5 | . 6 11 1 Treads 15 | . 28 17 . Leg 6 | . . 4 14 Storage 12 | . 14 11 11 Processor 11 | . 11 11 11 Energy Gun 13 | . 17 11 9 Ballistic Cannon 9 | . 10 11 8 Naked Turns . | . . . . Heaviest Build 23 | 12 14 14 23 Greatest Support 40 | 40 40 40 20 Greatest Overweight (x) 4 | . . . 4 Average Overweight (x) . | . . . . Largest Inventory Capacity 8 | 8 8 8 8 Average Capacity 7 | 7 8 8 8 Most Carried 8 | 6 7 7 8 Average Carried 5 | 3 5 6 5 Final Capacity 8 | 8 8 8 8 Final Carried 6 | 4 6 6 3 Class Distribution -------------------- 97% | Mutant Dominant Class ---------------- Mutant | -10/Materials Mutant | -9/Materials Mutant | -9/Storage Resources | -11 -10 -9 -9 ----------- Run | Yrd Mat Mat Sto Matter Collected 585 | 215 143 63 164 Remotely . | . . . . Salvage Created 753 | . 266 140 347 Parts 63 | . 25 13 25 Haulers Intercepted . | . . . . Recyclers Shooed . | . . . . Parts Field Recycled . | . . . . Retrieved Matter . | . . . . Parts Self-Destructed . | . . . . Prevented . | . . . . Kills | -11 -10 -9 -9 ------- Run | Yrd Mat Mat Sto Combat Hostiles Destroyed 22 | . 9 5 8 Guns 10 | . 3 2 5 Cannons 12 | . 6 3 3 Classes Destroyed 6 | . 3 1 2 Builder 1 | . . . 1 Watcher 2 | . 1 . 1 Swarmer 7 | . 4 3 . Grunt 9 | . 5 . 4 Brawler 1 | . . . 1 Sentry 5 | . . 2 3 Best Kill Streak 8 | . 7 3 8 Combat Bots Only 6 | . 6 3 5 Max Kills in Single Turn 2 | . 2 1 2 Gunslinging . | . . . . Exploded . | . . . . Melee . | . . . . Uniques/NPCs Destroyed . | . . . . Combat | -11 -10 -9 -9 -------- Run | Yrd Mat Mat Sto Hostile Shots Fired 195 | . 56 22 117 Missed 54 | . 14 8 32 Damage Taken 1754 | . 412 163 1179 Core 528 | . 120 46 362 Absorbed by Shields . | . . . . Core Remaining (%) 76 | 100 52 . . Volleys Fired 53 | . 17 7 29 Largest 2 | . 2 2 2 Hottest 90 | . 75 75 90 Shots Fired 104 | . 34 14 56 Gun 60 | . 17 7 36 Cannon 44 | . 17 7 20 Launcher . | . . . . Special . | . . . . Kinetic 58 | . 17 7 34 Thermal 46 | . 17 7 22 Explosive . | . . . . Electromagnetic . | . . . . Robot Hit Streak 16 | . 5 4 16 Robot Miss Streak 5 | . 4 2 5 Penetration Max . | . . . . Secondary Targets . | . . . . Shots Hit Robots 60 | . 20 7 33 Core Hits 37 | . 14 7 16 Critical Kills . | . . . . Critical Parts Destroyed . | . . . . Critical Strikes 1 | . . . 1 Blast 1 | . . . 1 Melee Attacks . | . . . . Impact . | . . . . Slashing . | . . . . Piercing . | . . . . Sneak Attacks . | . . . . Combat Hostiles . | . . . . Follow-up Attacks . | . . . . Damage Inflicted 1017 | . 314 106 597 Guns 513 | . 134 34 345 Cannons 504 | . 180 72 252 Explosions . | . . . . Melee . | . . . . Ramming . | . . . . Kinetic 671 | . 180 72 419 Thermal 346 | . 134 34 178 Explosive . | . . . . Electromagnetic . | . . . . Impact . | . . . . Slashing . | . . . . Piercing . | . . . . Highest Corruption 2 | . . . 2 Average Corruption 2 | . . . 2 Corruption Purged . | . . . . Corruption Blocked . | . . . . Effects 3 | . . . 3 Message Errors 1 | . . . 1 Matter Fused 1 | . . . 1 Parts Rejected 1 | . . . 1 Overload Shots . | . . . . Overflow Damage . | . . . . Projectiles . | . . . . Explosions . | . . . . Melee . | . . . . Knockbacks 3 | . 1 . 2 Impact . | . . . . Kinetic 3 | . 1 . 2 Secondary . | . . . . Self-Inflicted Damage . | . . . . Shots . | . . . . Rammed . | . . . . Targets Rammed . | . . . . Kicked . | . . . . Crushed . | . . . . Highest Temperature 237 | . 195 48 237 Average Temperature 70 | . 81 19 74 Received Heat Transfer 582 | . 105 36 441 Siege Activations . | . . . . Robots Corrupted . | . . . . Combat Hostiles . | . . . . Parts Fried . | . . . . Impact Corruptions . | . . . . Robots Melted . | . . . . Combat Hostiles . | . . . . Parts Melted . | . . . . Heat Transferred 846 | . 300 75 471 Parts Sabotaged . | . . . . Parts Stolen . | . . . . Parts Stripped . | . . . . Power Chain Reactions . | . . . . Alert | -11 -10 -9 -9 ------- Run | Yrd Mat Mat Sto Peak Influence 327 | . 227 285 327 Initial 120 | . . 95 120 Average 148 | . 119 191 194 Maximum Alert Level 1 | . 1 1 1 Low Security (%) 60 | 100 55 52 61 Level 1 39 | . 44 47 38 Level 2 . | . . . . Level 3 . | . . . . Level 4 . | . . . . Level 5 . | . . . . High Security . | . . . . Max Security . | . . . . Squads Dispatched 5 | . 2 2 1 Investigation 2 | . 2 . . Extermination . | . . . . Reinforcement 3 | . . 2 1 Assault . | . . . . Garrison . | . . . . Intercept . | . . . . Searches Triggered . | . . . . Construction Impeded . | . . . . Haulers Reinforced . | . . . . Active Scanning Responses . | . . . . Cargo Convoy Interrupts . | . . . . Stealth | -11 -10 -9 -9 --------- Run | Yrd Mat Mat Sto Distress Signals 5 | . 1 1 3 Communications Jammed . | . . . . Distress Signals . | . . . . Times Spotted 40 | . 12 8 20 Peak Tracking Total 8 | . 6 4 8 Tactical Retreats 2 | . . 1 1 Traps | -11 -10 -9 -9 ------- Run | Yrd Mat Mat Sto Traps Triggered 2 | . 2 . . Indirectly . | . . . . Trap Hack Attempts . | . . . . Triggered . | . . . . Disarmed . | . . . . Reprogrammed . | . . . . Reused . | . . . . Traps Extracted . | . . . . Installed . | . . . . Triggered . | . . . . Machines | -11 -10 -9 -9 ---------- Run | Yrd Mat Mat Sto Machines Disabled . | . . . . Max in Single Turn . | . . . . Machines Repaired . | . . . . Machines Dismantled . | . . . . Machines Sabotaged . | . . . . Overloaded Fab Kills . | . . . . Hacking | -11 -10 -9 -9 --------- Run | Yrd Mat Mat Sto Machines Accessed . | . . . . Terminals . | . . . . Fabricators . | . . . . Repair Stations . | . . . . Recycling Units . | . . . . Scanalyzers . | . . . . Garrison Access . | . . . . Total Hacks . | . . . . Successful . | . . . . Failed . | . . . . Catastrophic . | . . . . Database Lockouts . | . . . . Manual . | . . . . Terminals . | . . . . Fabricators . | . . . . Repair Stations . | . . . . Recycling Units . | . . . . Scanalyzers . | . . . . Garrison Access . | . . . . Terminal Hacks . | . . . . Fabricator Hacks . | . . . . Repair Station Hacks . | . . . . Recycling Unit Hacks . | . . . . Scanalyzer . | . . . . Garrison Access Hacks . | . . . . Unauthorized Hacks . | . . . . Terminals . | . . . . Fabricators . | . . . . Repair Stations . | . . . . Recycling Units . | . . . . Scanalyzers . | . . . . Garrison Access . | . . . . Data Cores Recovered . | . . . . Used . | . . . . Hacking Detections . | . . . . Full Trace Events . | . . . . Feedback Events . | . . . . Feedback Blocked . | . . . . Robot Schematics Acquired . | . . . . Robots Built . | . . . . Authchips . | . . . . Time . | . . . . Total Robot Build Rating . | . . . . Part Schematics Acquired . | . . . . Parts Built . | . . . . Authchips . | . . . . Time . | . . . . Total Part Build Rating . | . . . . Parts Repaired . | . . . . Time . | . . . . Parts Recycled . | . . . . Recycled Matter . | . . . . Retrieved Matter . | . . . . Retrieved Components . | . . . . Parts Scanalyzed . | . . . . Part Schematics Acquired . | . . . . Parts Damaged . | . . . . Bothacking | -11 -10 -9 -9 ------------ Run | Yrd Mat Mat Sto Used RIF Installer . | . . . . Robots Hacked . | . . . . Non-combat . | . . . . Combat . | . . . . Robot Hacks Applied . | . . . . Relay Couplers Released . | . . . . Fabnet Peak Effective % . | . . . . Robots Rewired . | . . . . Allies Hacked . | . . . . Hacks Repelled . | . . . . Allies | -11 -10 -9 -9 -------- Run | Yrd Mat Mat Sto Total Allies . | . . . . Largest Group . | . . . . Highest-Rated Group . | . . . . Highest-Rated Ally . | . . . . Total Orders . | . . . . Ally Attacks . | . . . . Total Damage . | . . . . Kills . | . . . . Allies Corrupted . | . . . . Allies Melted . | . . . . Intel | -11 -10 -9 -9 ------- Run | Yrd Mat Mat Sto Robot Analysis Total . | . . . . Derelict Logs Recovered . | . . . . Drone Launches . | . . . . Drone Recoveries . | . . . . Exploration | -11 -10 -9 -9 ------------- Run | Yrd Mat Mat Sto Turns Passed 962 | 76 386 184 316 Spaces Moved 513 | 44 198 104 167 Core 15 | 8 . . 7 Treads 308 | 36 198 74 . Legs 124 | . . 30 94 Wheels . | . . . . Hover . | . . . . Flight 66 | . . . 66 Fastest Speed 32 | 50 160 120 32 Average Speed 146 | 140 160 148 131 Slowest Speed 260 | 160 160 160 260 Overloaded Moves . | . . . . Propulsion Burnouts . | . . . . Robots Hopped 1 | . . . 1 Cave-ins Triggered . | . . . . Exploration Rate (%) 25 | 3 48 13 38 Regions Visited 3 Branch Regions 1 Pre-discovered Areas . | . . . . Known Exits Taken 2 | . 1 1 . Unknown Exits Taken 1 | 1 . . . Scrap Searched . | . . . . Spaces Dug . | . . . . Terrain Destroyed . | . . . . Melee . | . . . . Projectile . | . . . . AOE . | . . . . Terrain Rammed . | . . . . Walls Destroyed . | . . . . Machines Disabled . | . . . . Actions | -11 -10 -9 -9 --------- Run | Yrd Mat Mat Sto Total 617 | 59 233 119 206 Wait 6 | . 6 . . Move 508 | 43 197 103 165 Hop 1 | . . . 1 Pick Up 22 | 10 6 3 3 Fast Attach . | . . . . Attach 12 | 6 1 . 5 Detach . | . . . . Swap 8 | . 3 3 2 Drop 7 | . 3 3 1 Fire 53 | . 17 7 29 Melee . | . . . . Ram . | . . . . Kick . | . . . . Crush . | . . . . Escape Stasis . | . . . . Rewire . | . . . . Trap . | . . . . Miscellaneous . | . . . . Route ------- -11/Scrapyard -10/Materials (discovered 2 exits: *Mat / [*Min]) -9/Materials -9/Storage History --------- Turn | Location | Event 7 | -11/Scrapyard | Discovered new exit (range 15) 77 | -11/Scrapyard | Entered Materials 287 | -10/Materials | Discovered new exit (range 11) 321 | -10/Materials | Build established: Mutant 372 | -10/Materials | Discovered new exit (range 11) 461 | -10/Materials | Identified exit to Materials 463 | -10/Materials | Entered another Materials area 463 | -9/Materials | Evolved 2 slots: Power x1, Utility x1 636 | -9/Materials | Discovered new exit (range 9) 645 | -9/Materials | Identified exit to Storage 647 | -9/Materials | Entered Storage 903 | -9/Storage | Core integrity fell below 50% 917 | -9/Storage | Lost 4 parts (1p1n2w) 928 | -9/Storage | Core integrity fell below 20% 963 | -9/Storage | Destroyed by Y-45 Defender with Heavy Assault Rifle Last Messages --------------- reinforcements to Terminal S005. 00880_ Acquired 32 matter. 00882_ Lgt. Cannon destroyed. 00885_ Acquired 4 matter. 00886_ Aluminum Leg destroyed. 00886_ Critical hit (Burn: +37). 00889_ Acquired 4 matter. 00890_ R-06 Scavenger collects Heat Sink. 00894_ W-16 Scout destroyed. 00894_ R-06 Scavenger collects Ion Engine. 00897_ R-06 Scavenger collects Lgt. Ion Engine. 00903_ TM/N1=BSMYTPBQEZN7TPB&A#SQH=JP 00903_ Y-45 Defender destroyed. 00918_ Acquired 7 matter. 00925_ M-13 Machinist repairs Y-45 Defender. 00930_ Med. Laser destroyed. 00939_ Sml. Laser destroyed. 00943_ System corrupted: Imp. Ion Engine rejected. 00960_ VTOL Module destroyed. Map ----- +----------------------------------------------------+ | | | | | | | | | | | | | | | | | | | | | | | | | | | | | | | | | | | | | | | | | ????###################??????????????????????????? | | ????# ## #?????????????????????????? | | ????# ## ??????????????????????????? | | ????# ##T #######???????????????????? | | ????# """"" #?? ## ######T#????????????? | | ????# """"" #####+## @ ????????? | | ????# """"" + Y ????????? | | ????# ######## r l g ????????? | | ?"####+###############?# ####+######?????????? | | ?" ## #?###+###???????????????????? | | ?" + #???????????????????????????? | | ?"#T### ## #???????????????????????????? | | ??##??# ## #?????"?????????????????????? | | ??????+ ## #????""" #??????????????????? | | ??????# ## #??? #??????????????????? | | ??????# ########/####?? #??????????????????? | | ??????# #????# #?? ]]] #??????????????????? | | ??????# #????# ## ]] #??????????????????? | | ??????# #????# / ]] #??????????????????? | | ??????# #????# * ###### #?????????????????????? | | ??????# #????# #????????????????????????????? | | ??????# #????## ##????????????????????????????? | | ??????# #?????# #?????????????????????????????? | | ??????? ??????# #?????????????????????????????? | | ??????? ??????# #?????????????????????????????? | | ??????? ??????#% #?????????????????????????????? | | ???????????????# #?????????????????????????????? | | ???????????????# #??????????##?????????????????? | | ???????????????# #???????? #?????????????????? | | ???????????????# #?????? #?????????????????? | +----------------------------------------------------+ Best States ------------- Heat Dissipation 28 Energy Generation 17 Energy Capacity 415 Matter Stores 300 Matter Capacity 300 Sight Range 16 Terrain Scan Density 10 Evasion (%) 63 Recoil Reduction 2 Item Schematics ----------------- None Robot Schematics ------------------ None Fabricated ------------ Nothing Alien Tech Used ----------------- None Achievements -------------- None Challenges ------------ None Game ------ Seed PropulsionScrapPick Manual? 0 Play Time 00:12:54 Cumulative 12.5 hours Start 2024.06.28 @ 23:45:27 End 2024.06.28 @ 23:55:34 Sessions 1 Manual Loads 0 Difficulty Rogue Special Mode None Game No. 57 Rogue 57 Adventurer 0 Explorer 0 Win Type - Total 0 Types 0/0/0/0/0/0/0/0/0 Lore% 5 Gallery% 17 Achievement% 12 Wizard Run 0 Options --------- Layout 1 ASCII 0 Keyboard 0 Movement Mouse Keybinds 0 Fullscreen 1 Font 24/Smallcaps Map View 50x35 Zoom Use 0% Tactical HUD 1 Map Filters NONE Filters NONE Steam 1 RUN: 7bca5571-e6e7-4804-8772-917a9d40a9d7